bitfinex/quotes_SOLUSD_20250417
["timestamp","ask_amount","ask_price","bid_price","bid_amount"]
[1744890000550,7.51823171,133.01,132.98,8.91622869]
[1744890000845,90.31796229,133.02,133.0,8.91622869]
[1744890003666,82.8,133.02,133.01,8.91622869]
[1744890003871,7.5171018,133.03,133.01,8.91622869]
[1744890004179,7.5171018,133.03,133.02,8.91622869]
[1744890006103,7.5171018,133.03,133.0,8.91622869]
[1744890006750,35.226084,133.03,132.99,8.91622869]
[1744890007553,118.026084,133.03,132.99,8.91622869]
[1744890009173,7.51823171,133.01,132.98,8.91622869]
[1744890009468,26.31381098,133.01,132.97,34.91622869]
[1744890009676,26.31381098,133.01,132.98,8.91622869]
[1744890010079,118.03003967,133.01,132.93,35.72791476]
[1744890010377,8.91622869,132.97,132.93,8.97922869]
[1744890010672,118.21147755,133.0,132.95,8.91622869]
[1744890010868,82.8,132.99,132.96,8.91622869]
[1744890011272,7.5199278,132.98,132.97,8.91622869]
[1744890013150,82.8,132.99,132.97,8.91622869]
[1744890013151,90.31957696,132.99,132.97,8.91622869]
[1744890013363,90.31957696,132.99,132.98,8.91622869]
[1744890013564,7.51957696,132.99,132.98,8.91622869]
[1744890013978,7.51957696,132.99,132.97,8.91622869]
[1744890014575,7.51879699,133.0,132.97,8.91622869]
[1744890014775,7.51879699,133.0,132.98,8.91622869]
[1744890015285,7.51879699,133.0,132.97,8.91622869]
[1744890019380,7.51879699,133.0,132.98,8.91622869]
[1744890027484,7.51879699,133.0,132.97,8.91622869]
[1744890029080,7.51879699,133.0,132.98,8.91622869]
[1744890032088,7.51879699,133.0,132.97,8.91622869]
[1744890033175,7.51879699,133.0,132.96,8.91622869]
[1744890033376,26.31578947,133.0,132.96,8.91622869]
[1744890033573,8.91622869,132.99,132.95,14.98]
[1744890033875,8.91622869,132.96,132.93,0.063]
[1744890034073,8.91622869,132.94,132.93,0.063]
[1744890034992,7.52219046,132.94,132.93,0.063]
[1744890036213,7.52219046,132.94,132.93,8.97922869]
[1744890036790,7.52105896,132.96,132.93,8.97922869]
[1744890036991,90.32077838,132.97,132.95,8.91622869]
[1744890037206,90.32077838,132.97,132.96,8.91622869]
[1744890037385,7.52009262,132.98,132.96,8.91622869]
[1744890037579,90.31961614,132.99,132.97,8.91622869]
[1744890037895,90.31961614,132.99,132.98,8.91622869]
[1744890039193,90.31961614,132.99,132.98,13.92574011]
[1744890039972,90.31961614,132.99,132.96,13.92574011]
[1744890040796,90.31961614,132.99,132.97,13.92574011]
[1744890041096,90.31961614,132.99,132.98,13.92574011]
[1744890042379,90.31961614,132.99,132.97,13.92574011]
[1744890042890,7.51961614,132.99,132.97,13.92574011]
[1744890043394,7.51879699,133.0,132.97,13.92574011]
[1744890045003,7.51879699,133.0,132.98,13.92574011]
[1744890045498,7.51852246,133.01,132.99,13.92574011]
[1744890046089,7.51852246,133.01,133.0,13.92574011]
[1744890046694,7.5171014,133.03,133.0,13.92574011]
[1744890047001,7.5171014,133.03,133.02,13.92574011]
[1744890047400,7.54676703,133.04,133.02,13.92574011]
[1744890047578,7.54676703,133.04,133.03,13.92574011]
[1744890047900,0.03,133.04,133.03,13.92574011]
[1744890049393,0.03,133.04,133.03,14.21006325]
[1744890049593,0.03,133.04,133.02,40.98]
[1744890049901,0.03,133.04,133.03,13.92574011]
[1744890050899,0.03,133.04,132.98,14.98]
[1744890051291,0.03,133.04,133.0,13.92574011]
[1744890051794,13.95574011,133.04,133.0,13.92574011]
[1744890053010,26.33787733,133.04,133.0,13.92574011]
[1744890055106,40.26361744,133.04,133.0,13.92574011]
[1744890055412,26.33787733,133.04,133.0,13.92574011]
[1744890056216,26.33787733,133.04,132.99,26.0]
[1744890056410,26.33787733,133.04,133.0,13.92574011]
[1744890056902,26.33787733,133.04,133.02,13.92574011]
[1744890057084,26.33787733,133.04,133.01,13.92574011]
[1744890059010,7.54653638,133.04,133.02,13.92574011]
[1744890059704,7.54653638,133.04,133.03,13.92574011]
[1744890059908,0.03,133.04,133.03,13.92574011]
[1744890061800,0.03,133.04,133.02,13.92574011]
[1744890064239,0.03,133.04,133.0,39.92574011]
[1744890064398,0.03,133.04,133.03,13.92574011]
[1744890069131,0.03,133.04,133.03,8.90577961]
[1744890069423,0.03,133.04,133.02,8.90577961]
[1744890069723,0.03,133.04,133.0,26.0]
[1744890069898,0.03,133.04,133.02,8.90577961]
[1744890070100,0.03,133.04,133.01,8.90577961]
[1744890070329,0.03,133.04,133.0,26.0]
[1744890070627,8.90577961,133.03,133.0,26.0]
[1744890071514,7.51766651,133.02,133.0,26.0]
[1744890072225,7.51766651,133.02,133.01,8.90577961]
[1744890073216,7.51766651,133.02,133.01,13.91732832]
[1744890073528,7.5171014,133.03,133.01,13.91732832]
[1744890074325,7.5171014,133.03,133.02,13.91732832]
[1744890075225,7.5171014,133.03,133.01,13.91732832]
[1744890075423,7.5171014,133.03,133.0,26.0]
[1744890076243,26.30985491,133.03,133.0,26.0]
[1744890077932,26.30985491,133.03,133.0,39.91732832]
[1744890080335,18.79275351,133.03,133.0,39.91732832]
[1744890080827,18.79275351,133.03,133.0,26.0]
[1744890083035,26.30985491,133.03,133.0,39.91732832]
[1744890083626,7.5171014,133.03,133.0,39.91732832]
[1744890085841,7.5171014,133.03,133.01,13.91732832]
[1744890087838,7.5171014,133.03,133.0,13.91732832]
[1744890093152,7.5171014,133.03,133.0,8.90831075]
[1744890093842,7.5171014,133.03,133.01,8.90831075]
[1744890094468,0.03,133.04,133.01,8.90831075]
[1744890094626,0.03,133.04,133.03,8.90831075]
[1744890100762,0.03,133.04,133.03,26.0]
[1744890101664,0.03,133.04,133.03,34.90831075]
[1744890105867,0.03,133.04,133.03,35.19263389]
[1744890110752,0.03,133.04,133.03,42.70973529]
[1744890112975,0.03,133.04,133.03,35.19263389]
[1744890114674,0.03,133.04,133.03,42.70973529]
[1744890120491,0.03,133.04,133.03,35.19263389]
[1744890120887,0.03,133.04,133.03,34.90831075]
[1744890121287,0.03,133.04,133.03,35.19263389]
[1744890121467,0.03,133.04,133.03,42.70973529]
[1744890124789,0.03,133.09,133.07,44.933972]
[1744890124976,0.03,133.11,133.1,26.28432314]
[1744890125291,0.03,133.11,133.1,35.19263389]
[1744890125665,0.03,133.16,133.1,53.84228275]
[1744890125867,0.03,133.16,133.15,8.90831075]
[1744890128889,0.03,133.16,133.14,40.96]
[1744890129081,0.03,133.16,133.15,8.90831075]
[1744890131307,0.03,133.16,133.15,35.35260944]
[1744890131494,0.03,133.22,133.18,26.28432314]
[1744890131683,0.03,133.22,133.21,34.90831075]
[1744890132296,0.03,133.22,133.21,35.19263389]
[1744890132674,0.03,133.22,133.21,70.82587689]
[1744890132874,0.03,133.22,133.21,78.33282081]
[1744890133074,0.03,133.22,133.21,35.19263389]
[1744890133279,0.03,133.22,133.21,78.33282081]
[1744890133883,7.50322681,133.28,133.22,0.28432314]
[1744890134112,7.50322681,133.28,133.24,8.90831075]
[1744890134277,15.68685735,133.29,133.25,8.90831075]
[1744890134472,24.5951681,133.29,133.25,8.90831075]
[1744890134702,8.90831075,133.28,133.24,8.90831075]
[1744890135166,24.5951681,133.29,133.25,8.90831075]
[1744890135369,24.5951681,133.29,133.24,8.90831075]
[1744890135565,24.5951681,133.29,133.25,8.90831075]
[1744890136216,7.5001875,133.33,133.28,8.90831075]
[1744890136377,7.5001875,133.33,133.3,8.90831075]
[1744890136576,35.15896701,133.33,133.28,8.90831075]
[1744890141116,26.25065626,133.33,133.29,8.90831075]
[1744890142791,8.90831075,133.32,133.27,8.90831075]
[1744890143114,82.8,133.31,133.27,8.90831075]
[1744890143292,7.50187546,133.3,133.27,8.90831075]
[1744890143703,90.30143595,133.31,133.28,8.90831075]
[1744890143902,90.30143595,133.31,133.29,8.90831075]
[1744890146018,82.8,133.31,133.29,8.90831075]
[1744890146426,90.30141069,133.31,133.29,8.90831075]
[1744890146638,1.5311,133.29,133.21,352.094543]
[1744890146800,84.3311,133.29,133.25,8.90831075]
[1744890147000,7.5030012,133.28,133.26,8.90831075]
[1744890147818,91.83378042,133.29,133.26,8.90831075]
[1744890148029,82.8,133.29,133.28,8.90831075]
[1744890148225,7.50198607,133.3,133.27,8.90831075]
[1744890148902,7.50131272,133.31,133.27,8.90831075]
[1744890150824,7.50131272,133.31,133.25,0.28432314]
[1744890151025,7.50131272,133.31,133.27,8.90831075]
[1744890151516,7.50131272,133.31,133.29,8.90831075]
[1744890152626,7.50131272,133.31,133.28,8.90831075]
[1744890153002,26.25459454,133.31,133.27,8.90831075]
[1744890153318,26.25459454,133.31,133.28,8.90831075]
[1744890153923,26.25459454,133.31,133.27,34.90831075]
[1744890154905,7.50078797,133.32,133.29,8.90831075]
[1744890155400,7.50042608,133.33,133.31,8.90831075]
[1744890155797,7.50042608,133.33,133.27,22.68356027]
[1744890155798,16.40873683,133.33,133.27,15.18]
[1744890155997,8.90831075,133.32,133.27,41.18]
[1744890156218,7.50042608,133.33,133.28,8.90831075]
[1744890156219,35.15920559,133.33,133.28,8.90831075]
[1744890156921,110.35795961,133.32,133.27,41.18]
[1744890157121,26.25089484,133.33,133.22,1.6198]
[1744890157122,18.64964886,133.3,133.22,15.18]
[1744890157318,93.29131075,133.31,133.27,8.90831075]
[1744890157718,84.383,133.31,133.27,8.90831075]
[1744890158314,84.383,133.31,133.25,26.0]
[1744890158315,1.583,133.31,133.28,8.90831075]
[1744890158719,7.50187546,133.3,133.29,8.90831075]
[1744890159804,7.50187546,133.3,133.28,8.90831075]
[1744890160522,7.50187546,133.3,133.27,8.90831075]
[1744890161120,7.50187546,133.3,133.28,8.90831075]
[1744890161500,7.50187546,133.3,133.29,8.90831075]
[1744890162228,7.5001875,133.33,133.29,8.90831075]
[1744890162410,7.5001875,133.33,133.31,8.90831075]
[1744890163407,7.5001875,133.33,133.3,8.90831075]
[1744890163803,26.25065626,133.33,133.29,34.90831075]
[1744890164007,35.15896701,133.33,133.29,34.90831075]
[1744890164310,26.25065626,133.33,133.29,34.90831075]
[1744890164726,35.15896701,133.33,133.29,34.90831075]
[1744890165108,26.25065626,133.33,133.29,34.90831075]
[1744890165405,82.8,133.32,133.25,22.94812314]
[1744890165732,82.8,133.32,133.29,8.90831075]
[1744890166117,82.8,133.32,133.3,8.90831075]
[1744890166415,7.5001875,133.33,133.31,8.90831075]
[1744890166608,7.5001875,133.33,133.28,26.0]
[1744890166807,7.5001875,133.33,133.29,8.90831075]
[1744890167209,82.8,133.32,133.29,8.90831075]
[1744890167414,7.50131272,133.31,133.28,34.90831075]
[1744890167605,7.50131272,133.31,133.28,26.0]
[1744890167808,7.50131272,133.31,133.28,34.90831075]
[1744890168314,7.50131272,133.31,133.28,26.0]
[1744890168634,26.25459454,133.31,133.28,26.0]
[1744890168817,26.25459454,133.31,133.28,34.90831075]
[1744890169008,7.50131272,133.31,133.29,8.90831075]
[1744890169726,7.50131272,133.31,133.3,8.90831075]
[1744890170035,90.30095077,133.32,133.3,8.90831075]
[1744890170334,7.50038153,133.33,133.31,8.90831075]
[1744890170511,15.39475459,133.34,133.32,8.90831075]
[1744890173532,7.49985459,133.34,133.33,8.90831075]
[1744890173833,7.49985459,133.34,133.32,8.90831075]
[1744890175241,7.49985459,133.34,133.3,26.0]
[1744890175439,7.49985459,133.34,133.32,8.90831075]
[1744890176510,7.49985459,133.34,133.3,26.0]
[1744890176910,7.49985459,133.34,133.32,8.90831075]
[1744890179935,90.29931054,133.35,133.33,8.90831075]
[1744890180512,90.29931054,133.35,133.32,34.90831075]
[1744890180839,90.29931054,133.35,133.32,26.0]
[1744890181225,109.04696708,133.35,133.32,26.0]
[1744890181423,109.04696708,133.35,133.32,34.90831075]
[1744890181625,90.29931054,133.35,133.32,34.90831075]
[1744890183742,7.49793806,133.37,133.34,8.90831075]
[1744890183924,7.49793806,133.37,133.33,8.90831075]
[1744890184124,35.15109397,133.37,133.32,34.90831075]
[1744890184336,8.90831075,133.36,133.32,34.90831075]
[1744890184641,7.49793806,133.37,133.35,8.90831075]
[1744890186046,7.49793806,133.37,133.34,8.90831075]
[1744890187748,26.24278322,133.37,133.36,8.90831075]
[1744890188052,7.49793806,133.37,133.35,8.90831075]
[1744890189132,0.03,133.39,133.36,8.90831075]
[1744890189333,0.03,133.39,133.38,8.90831075]
[1744890189652,7.52681385,133.39,133.37,8.90831075]
[1744890189846,0.03,133.39,133.36,8.90831075]
[1744890190025,0.03,133.39,133.35,34.90831075]
[1744890190026,90.7823,133.39,133.35,34.90831075]
[1744890190224,91.70831075,133.38,133.33,26.0]
[1744890190424,91.70831075,133.38,133.34,8.90831075]
[1744890190625,91.70831075,133.38,133.3,16.9257]
[1744890190626,82.8,133.37,133.3,16.9257]
[1744890190839,82.8,133.37,133.33,8.90831075]
[1744890191928,26.24475103,133.36,133.32,8.90831075]
[1744890194931,35.15306178,133.36,133.31,34.90831075]
[1744890195339,7.49850029,133.36,133.33,8.90831075]
[1744890195654,7.49850029,133.36,133.34,8.90831075]
[1744890196228,26.24097889,133.38,133.34,8.90831075]
[1744890196448,35.14928964,133.38,133.33,8.90831075]
[1744890198634,26.24097889,133.38,133.35,8.90831075]
[1744890199755,18.74360298,133.38,133.35,8.90831075]
[1744890200632,18.74360298,133.38,133.36,8.90831075]
[1744890200833,18.74360298,133.38,133.35,8.90831075]
[1744890201548,18.74360298,133.38,133.31,35.31604304]
[1744890201727,26.24097889,133.38,133.32,0.28432314]
[1744890201927,7.49737591,133.38,133.36,8.90831075]
[1744890202159,7.52702308,133.39,133.37,8.90831075]
[1744890202365,7.52702308,133.39,133.38,8.90831075]
[1744890202531,0.03,133.39,133.38,9.19263389]
[1744890202731,0.03,133.39,133.38,8.90831075]
[1744890203549,7.52681385,133.39,133.36,8.90831075]
[1744890203735,7.52681385,133.39,133.37,8.90831075]
[1744890204260,0.03,133.39,133.37,8.90831075]
[1744890204877,0.03,133.39,133.34,26.0]
[1744890205166,0.03,133.39,133.35,8.90831075]
[1744890210173,26.2408157,133.38,133.35,8.90831075]
[1744890210349,91.70831075,133.37,133.33,15.4]
[1744890210549,8.90831075,133.36,133.28,35.633243]
[1744890210745,91.70831075,133.36,133.31,8.90831075]
[1744890210944,91.70831075,133.36,133.31,34.90831075]
[1744890211249,8.90831075,133.35,133.31,26.0]
[1744890211771,91.70831075,133.34,133.27,16.9356]
[1744890212059,26.25065626,133.33,133.29,8.90831075]
[1744890212531,26.25065626,133.33,133.28,26.0]
[1744890212746,8.90831075,133.32,133.27,24.30831075]
[1744890212947,26.25065626,133.33,133.27,24.30831075]
[1744890213167,35.15896701,133.33,133.28,8.90831075]
[1744890215871,82.8,133.32,133.28,8.90831075]
[1744890216677,26.25656413,133.3,133.27,15.4]
[1744890216870,26.25656413,133.3,133.26,34.90831075]
[1744890217076,109.05656413,133.3,133.26,34.90831075]
[1744890218780,117.96487488,133.3,133.26,34.90831075]
[1744890218960,109.05656413,133.3,133.26,34.90831075]
[1744890220077,90.30187546,133.3,133.28,8.90831075]
[1744890220972,90.30187546,133.3,133.27,8.90831075]
[1744890221548,90.30187546,133.3,133.26,34.90831075]
[1744890221851,109.05656413,133.3,133.26,34.90831075]
[1744890222251,109.05656413,133.3,133.27,8.90831075]
[1744890223685,109.05656413,133.3,133.26,34.90831075]
[1744890224058,8.90831075,133.29,133.24,34.90831075]
[1744890224658,27.55795961,133.28,133.24,26.0]
[1744890225151,91.70831075,133.27,133.19,22.90794071]
[1744890225351,91.70831075,133.27,133.22,8.90831075]
[1744890225769,26.26444543,133.26,133.22,8.90831075]
[1744890226590,7.50412726,133.26,133.23,8.90831075]
[1744890229204,7.50412726,133.26,133.22,34.90831075]
[1744890229783,7.50412726,133.26,133.23,8.90831075]
[1744890231208,7.50412726,133.26,133.24,8.90831075]
[1744890231608,82.8,133.27,133.25,8.90831075]
[1744890231807,7.50319527,133.28,133.26,8.90831075]
[1744890232116,7.50243829,133.29,133.27,8.90831075]
[1744890241006,7.50243829,133.29,133.26,26.0]
[1744890241171,16.41074904,133.29,133.23,41.32]
[1744890241371,16.41074904,133.29,133.2,7.50710572]
[1744890241372,8.90831075,133.27,133.22,8.90831075]
[1744890241676,82.8,133.26,133.22,34.90831075]
[1744890242089,82.8,133.25,133.21,8.90831075]
[1744890243202,7.50525367,133.24,133.21,8.90831075]
[1744890244295,109.06838786,133.24,133.21,8.90831075]
[1744890244499,109.06838786,133.24,133.2,34.90831075]
[1744890245176,117.97669861,133.24,133.16,7.5755981]
[1744890245385,91.70831075,133.23,133.19,8.90831075]
[1744890245700,91.70831075,133.23,133.18,8.90831075]
[1744890245995,82.8,133.23,133.2,8.90831075]
[1744890246204,82.8,133.23,133.21,8.90831075]
[1744890247596,90.30625326,133.23,133.21,8.90831075]
[1744890250624,90.30625326,133.23,133.22,8.90831075]
[1744890252815,82.8,133.23,133.22,8.90831075]
[1744890253519,90.305817,133.23,133.19,26.0]
[1744890253724,7.505817,133.23,133.21,8.90831075]
[1744890254623,7.50469043,133.25,133.21,8.90831075]
[1744890256818,82.8,133.24,133.21,8.90831075]
[1744890257818,82.8,133.24,133.22,8.90831075]
[1744890257999,82.8,133.24,133.23,8.90831075]
[1744890259127,90.30540737,133.24,133.2,7.5074753]
[1744890259331,90.30540737,133.24,133.23,8.90831075]
[1744890261627,82.8,133.24,133.23,8.90831075]
[1744890261803,90.30525367,133.24,133.23,8.90831075]
[1744890262003,90.30525367,133.24,133.19,33.50777768]
[1744890262205,90.30525367,133.24,133.21,8.90831075]
[1744890262926,90.30525367,133.24,133.22,34.90831075]
[1744890263112,82.8,133.24,133.22,34.90831075]
[1744890263319,82.8,133.27,133.23,8.90831075]
[1744890263630,90.30264832,133.29,133.26,8.90831075]
[1744890263930,90.30264832,133.29,133.27,8.90831075]
[1744890264130,15.38185109,133.3,133.28,8.90831075]
[1744890264314,7.53205109,133.3,133.29,8.90831075]
[1744890265007,7.53205109,133.3,133.28,8.90831075]
[1744890265206,0.03,133.3,133.28,8.90831075]
[1744890269334,0.03,133.3,133.29,8.90831075]
[1744890270745,0.03,133.3,133.28,8.90831075]
[1744890270921,0.03,133.3,133.27,8.90831075]
[1744890271846,0.03,133.3,133.28,8.90831075]
[1744890273037,0.03,133.3,133.27,8.90831075]
[1744890273538,0.03,133.3,133.28,8.90831075]
[1744890273742,0.03,133.3,133.27,8.90831075]
[1744890274039,0.03,133.3,133.28,8.90831075]
[1744890275734,0.03,133.3,133.27,8.90831075]
[1744890278856,0.03,133.3,133.28,8.90831075]
[1744890280348,82.83,133.3,133.29,8.90831075]
[1744890282052,82.83,133.3,133.29,16.41074904]
[1744890282253,82.83,133.3,133.25,15.18]
[1744890282546,82.83,133.3,133.28,8.90831075]
[1744890282741,82.83,133.3,133.27,8.90831075]
[1744890283421,90.33196228,133.3,133.27,8.90831075]
[1744890284460,90.33196228,133.3,133.26,26.0]
[1744890284630,90.33196228,133.3,133.27,8.90831075]
[1744890285155,90.33196228,133.3,133.26,26.0]
[1744890285339,90.33196228,133.3,133.27,8.90831075]
[1744890285836,90.33196228,133.3,133.26,34.90831075]
[1744890286038,90.33196228,133.3,133.27,8.90831075]
[1744890288086,90.33196228,133.3,133.28,34.90831075]
[1744890288453,90.33196228,133.3,133.28,26.0]
[1744890290268,90.33196228,133.3,133.28,34.90831075]
[1744890299469,90.33196228,133.3,133.28,8.90831075]
[1744890301141,109.08665095,133.3,133.24,15.04]
[1744890301339,109.08665095,133.3,133.26,8.90831075]
[1744890302459,109.08665095,133.3,133.27,8.90831075]
[1744890302651,90.33196228,133.3,133.28,8.90831075]
[1744890302852,90.33196228,133.3,133.29,8.90831075]
[1744890304464,109.08665095,133.3,133.24,15.04]
[1744890304644,109.08665095,133.3,133.27,8.90831075]
[1744890320577,82.8,133.29,133.27,8.90831075]
[1744890320777,82.8,133.29,133.26,34.90831075]
[1744890320977,7.5030012,133.28,133.26,26.0]
[1744890321281,7.5030012,133.28,133.26,34.90831075]
[1744890323878,7.5030012,133.28,133.27,8.90831075]
[1744890324577,7.5030012,133.28,133.26,34.90831075]
[1744890325885,7.5030012,133.28,133.18,14.98]
[1744890325886,18.64964886,133.25,133.18,14.98]
[1744890326073,8.90831075,133.22,133.16,0.063]
[1744890326393,34.20815961,133.23,133.18,8.90831075]
[1744890326675,25.29984886,133.23,133.19,8.90831075]
[1744890326877,82.8,133.22,133.19,8.90831075]
[1744890327382,82.8,133.22,133.18,34.90831075]
[1744890327765,7.50694392,133.21,133.19,8.90831075]
[1744890328077,7.50694392,133.21,133.18,34.90831075]
[1744890329078,82.8,133.2,133.17,8.90831075]
[1744890329583,82.8,133.2,133.16,0.063]
[1744890329758,91.70831075,133.2,133.16,8.97131075]
[1744890329958,7.50807117,133.19,133.16,8.97131075]
[1744890330763,117.98655986,133.19,133.16,0.063]
[1744890331080,8.90831075,133.18,133.16,0.063]
[1744890331381,18.64964886,133.18,133.16,0.063]
[1744890332179,26.15884762,133.17,133.16,0.063]
[1744890332566,35.06715837,133.17,133.16,0.063]
[1744890334667,7.50919876,133.17,133.16,0.063]
[1744890335066,7.50807117,133.19,133.16,8.97131075]
[1744890335293,7.50807117,133.19,133.18,8.90831075]
[1744890336587,7.50807117,133.19,133.17,8.90831075]
[1744890336771,7.50807117,133.19,133.16,8.97131075]
[1744890337679,7.50807117,133.19,133.16,0.063]
[1744890337886,7.50807117,133.19,133.16,8.97131075]
[1744890338586,7.50807117,133.19,133.16,0.063]
[1744890338587,16.41638192,133.19,133.16,0.063]
[1744890338765,18.64964886,133.18,133.16,0.063]
[1744890338971,82.8,133.17,133.16,0.063]
[1744890340069,82.8,133.17,133.16,8.97131075]
[1744890341297,90.30919876,133.17,133.16,8.97131075]
[1744890342397,90.30919876,133.17,133.16,0.063]
[1744890342985,82.8,133.17,133.16,8.97131075]
[1744890343377,82.8,133.17,133.16,16.48107344]
[1744890343676,82.8,133.17,133.16,8.97131075]
[1744890343879,7.50807349,133.19,133.16,8.97131075]
[1744890344086,7.50807349,133.19,133.18,8.90831075]
[1744890344285,7.50694392,133.21,133.18,8.90831075]
[1744890345595,7.50694392,133.21,133.19,8.90831075]
[1744890347998,7.50694392,133.21,133.18,8.90831075]
[1744890348298,7.50694392,133.21,133.17,34.90831075]
[1744890348793,7.50694392,133.21,133.18,8.90831075]
[1744890351797,26.27430372,133.21,133.18,8.90831075]
[1744890352674,8.90831075,133.19,133.16,0.063]
[1744890352996,110.35795961,133.18,133.16,0.063]
[1744890353297,82.8,133.17,133.16,0.063]
[1744890354488,117.86715837,133.17,133.16,0.063]
[1744890354983,35.06715837,133.17,133.16,0.063]
[1744890355184,26.15884762,133.17,133.16,0.063]
[1744890355597,18.64964886,133.16,133.15,1e-08]
[1744890355775,35.56915961,133.16,133.15,1e-08]
[1744890356712,43.0789223,133.16,133.15,1e-08]
[1744890357321,43.36324544,133.16,133.15,1e-08]
[1744890358386,58.34324544,133.16,133.15,1e-08]
[1744890358684,0.14216157,133.13,133.1,0.063]
[1744890358898,8.90831075,133.11,133.1,0.063]
[1744890359320,13.90789813,133.11,133.1,0.063]
[1744890359916,21.4204817,133.11,133.1,0.063]
[1744890360415,36.4004817,133.11,133.1,0.063]
[1744890361312,22.49258357,133.11,133.1,0.063]
[1744890362018,7.51258357,133.11,133.1,13.97089813]
[1744890362191,82.8,133.12,133.1,13.97089813]
[1744890362392,82.8,133.12,133.11,13.90789813]
[1744890364321,90.31201923,133.12,133.11,13.90789813]
[1744890364528,90.31201923,133.12,133.1,0.063]
[1744890364994,82.8,133.12,133.11,13.90789813]
[1744890365821,90.31201923,133.12,133.11,13.90789813]
[1744890365995,82.8,133.12,133.11,13.90789813]
[1744890366509,90.31059226,133.15,133.11,13.90789813]
[1744890366694,90.31059226,133.15,133.13,13.90789813]
[1744890368798,90.31059226,133.15,133.14,13.90789813]
[1744890369119,90.31059226,133.15,133.13,13.90789813]
[1744890372927,90.31059226,133.15,133.11,13.90789813]
[1744890373231,109.086409,133.15,133.11,13.90789813]
[1744890373739,109.086409,133.15,133.12,13.90789813]
[1744890374106,7.51145496,133.13,133.12,13.90789813]
[1744890375742,90.31114138,133.14,133.12,13.90789813]
[1744890379417,90.31114138,133.14,133.11,39.90789813]
[1744890380540,90.31114138,133.14,133.12,13.90789813]
[1744890382139,90.31114138,133.14,133.13,13.90789813]
[1744890382346,82.8,133.14,133.13,13.90789813]
[1744890382528,90.31089079,133.14,133.13,13.90789813]
[1744890385743,90.31089079,133.14,133.12,13.90789813]
[1744890385942,90.31089079,133.14,133.11,39.90789813]
[1744890386249,90.31089079,133.14,133.12,13.90789813]
[1744890386548,90.31089079,133.14,133.13,13.90789813]
[1744890386923,82.8,133.14,133.13,13.90789813]
[1744890387146,82.8,133.14,133.13,8.88944536]
[1744890387520,82.8,133.18,133.13,51.95856814]
[1744890387737,7.50807117,133.19,133.17,8.88944536]
[1744890388048,7.50807117,133.19,133.18,8.88944536]
[1744890389350,0.03,133.21,133.18,8.88944536]
[1744890389526,0.03,133.21,133.2,8.88944536]
[1744890390563,7.53700623,133.21,133.2,8.88944536]
[1744890390848,0.03,133.21,133.2,8.88944536]
[1744890393156,0.03,133.21,133.2,13.88046795]
[1744890393855,0.03,133.21,133.19,13.88046795]
[1744890394231,0.03,133.21,133.15,14.98]
[1744890394232,82.8,133.2,133.15,14.98]
[1744890394425,82.8,133.19,133.16,13.88046795]
[1744890395050,82.8,133.19,133.17,13.88046795]
[1744890395633,7.50863493,133.18,133.16,13.88046795]
[1744890396046,7.50863493,133.18,133.17,13.88046795]
[1744890399962,7.50863493,133.18,133.15,26.0]
[1744890400153,7.50863493,133.18,133.16,13.88046795]
[1744890404671,7.50863493,133.18,133.17,13.88046795]
[1744890405471,7.5075075,133.2,133.17,13.88046795]
[1744890405666,7.5075075,133.2,133.19,13.88046795]
[1744890406062,0.03,133.21,133.19,13.88046795]
[1744890406063,7.53710222,133.21,133.19,13.88046795]
[1744890406368,7.53710222,133.21,133.2,13.88046795]
[1744890413378,0.03,133.21,133.2,13.88046795]
[1744890415177,0.03,133.21,133.2,8.8813684]
[1744890415374,0.03,133.21,133.2,51.9143495]
[1744890415567,0.03,133.21,133.2,8.8813684]
[1744890421382,0.03,133.21,133.19,8.8813684]
[1744890421788,0.03,133.21,133.2,8.8813684]
[1744890423679,0.03,133.21,133.2,42.3888759]
[1744890424180,0.03,133.21,133.2,34.8813684]
[1744890427986,0.03,133.21,133.18,8.8813684]
[1744890428382,0.03,133.21,133.19,8.8813684]
[1744890428790,0.03,133.21,133.18,8.8813684]
[1744890429098,0.03,133.21,133.19,8.8813684]
[1744890429294,0.03,133.21,133.19,13.88238959]
[1744890429787,7.53694392,133.21,133.19,13.88238959]
[1744890430090,7.53694392,133.21,133.2,13.88238959]
[1744890430892,0.03,133.21,133.2,13.88238959]
[1744890432489,0.03,133.21,133.2,39.88238959]
[1744890433469,0.03,133.21,133.2,61.27228668]
[1744890437394,0.03,133.21,133.2,39.88238959]